bitfinex/quotes_BTCUSD_20251012
["timestamp","ask_amount","ask_price","bid_price","bid_amount"]
[1760239364691,0.00898714,111270.0,111260.0,0.17975912]
[1760239364889,0.00049959,111270.0,111260.0,0.17975912]
[1760239365102,0.00049959,111270.0,111260.0,0.25925088]
[1760239365301,0.37926725,111270.0,111250.0,0.25925771]
[1760239365502,0.55852678,111260.0,111250.0,0.04774176]
[1760239365918,0.17977528,111250.0,111240.0,0.04774176]
[1760239366169,0.55854294,111250.0,111240.0,0.04774176]
[1760239366373,0.55854294,111250.0,111230.0,0.26828492]
[1760239366803,0.55854294,111250.0,111240.0,0.17979144]
[1760239367113,0.5679976,111270.0,111250.0,0.17977528]
[1760239367268,0.18922994,111270.0,111250.0,0.17977528]
[1760239367436,0.37876766,111260.0,111250.0,0.17977528]
[1760239367635,0.5679976,111270.0,111260.0,0.17975912]
[1760239368060,0.18024255,111270.0,111260.0,0.17975912]
[1760239368437,0.37926725,111270.0,111260.0,0.17975912]
[1760239368635,0.18024255,111270.0,111250.0,0.25926704]
[1760239368841,0.55901021,111270.0,111250.0,0.25926704]
[1760239369047,0.18024255,111270.0,111250.0,0.32645704]
[1760239369247,0.55901021,111270.0,111250.0,0.21152528]
[1760239369724,0.55901021,111270.0,111230.0,0.04774176]
[1760239369725,0.17977528,111250.0,111230.0,0.04774176]
[1760239369931,0.5585591,111240.0,111230.0,0.1798076]
[1760239370130,0.55854294,111250.0,111230.0,0.2561072]
[1760239370329,0.17979144,111240.0,111230.0,0.17980368]
[1760239370594,0.5585591,111240.0,111220.0,0.26830625]
[1760239370775,0.17979144,111240.0,111230.0,0.1798076]
[1760239371099,0.37876766,111260.0,111240.0,0.17978411]
[1760239371304,0.37876766,111250.0,111240.0,0.04774176]
[1760239371466,0.17977528,111250.0,111230.0,0.26828974]
[1760239372097,0.00176063,111240.0,111230.0,0.26828974]
[1760239372400,0.00176063,111240.0,111230.0,0.38002974]
[1760239372972,0.00176063,111240.0,111230.0,0.30384936]
[1760239374224,0.7626954,111240.0,111230.0,0.04774176]
[1760239374439,0.1798076,111230.0,111220.0,0.04774176]
[1760239374593,0.1798076,111230.0,111210.0,0.21158846]
[1760239374594,0.76095093,111230.0,111210.0,0.21158846]
[1760239374795,0.76992434,111240.0,111220.0,0.17982377]
[1760239375029,0.18876596,111250.0,111240.0,0.17979144]
[1760239375186,0.18876596,111250.0,111230.0,0.2125576]
[1760239375187,0.17979144,111240.0,111230.0,0.2125576]
[1760239375383,0.17979144,111240.0,111230.0,0.03275]
[1760239375590,0.17979144,111240.0,111230.0,0.05073076]
[1760239375791,0.17979144,111240.0,111230.0,0.23053836]
[1760239376017,0.17979144,111240.0,111230.0,0.2571076]
[1760239376458,0.17979144,111240.0,111230.0,0.03275]
[1760239376663,0.17979144,111240.0,111230.0,0.0763]
[1760239377109,0.17979144,111240.0,111230.0,0.03175]
[1760239377787,0.17979144,111240.0,111220.0,0.25931385]
[1760239377988,0.18876596,111250.0,111230.0,0.27408836]
[1760239378196,0.18926524,111250.0,111230.0,0.37103936]
[1760239378350,0.17979144,111240.0,111230.0,0.30384936]
[1760239378557,0.17979144,111240.0,111230.0,0.07949176]
[1760239378865,0.17709372,111240.0,111230.0,0.03175]
[1760239379278,0.17709372,111240.0,111230.0,0.27408836]
[1760239379492,0.00049928,111250.0,111240.0,0.17979144]
[1760239379695,0.00049928,111250.0,111240.0,0.32328144]
[1760239379895,0.00049928,111250.0,111240.0,0.3710232]
[1760239380332,0.00284658,111250.0,111240.0,0.3710232]
[1760239380801,0.00284658,111250.0,111240.0,0.38693712]
[1760239381888,0.0002,111280.0,111270.0,0.17974296]
[1760239382114,0.00034978,111280.0,111270.0,0.25604296]
[1760239382607,0.00034978,111280.0,111270.0,0.37089414]
[1760239383055,0.00034978,111280.0,111270.0,0.96803197]
[1760239383485,0.00034978,111280.0,111270.0,0.31969864]
[1760239383709,0.18007659,111280.0,111270.0,0.04761815]
[1760239383927,0.76121992,111280.0,111270.0,0.04761815]
[1760239384145,0.17974296,111270.0,111260.0,0.04761815]
[1760239384350,0.17974296,111270.0,111250.0,0.25914343]
[1760239384744,0.17975912,111260.0,111250.0,0.25914343]
[1760239385022,0.17975912,111260.0,111250.0,0.04761815]
[1760239385023,0.76090245,111260.0,111250.0,0.04761815]
[1760239385241,0.17977528,111250.0,111240.0,0.2591569]
[1760239385668,0.17977528,111250.0,111240.0,0.04761815]
[1760239386092,0.17977528,111250.0,111240.0,0.07724]
[1760239386316,0.76091861,111250.0,111230.0,0.26023575]
[1760239386525,0.7698904,111260.0,111240.0,0.25703144]
[1760239386732,0.76987343,111270.0,111260.0,0.17975912]
[1760239386944,0.1887301,111270.0,111250.0,0.26020343]
[1760239387628,0.18184093,111280.0,111260.0,0.25699454]
[1760239387833,0.18184093,111280.0,111270.0,0.04761815]
[1760239387834,0.18007824,111280.0,111270.0,0.04761815]
[1760239388262,0.00034978,111280.0,111270.0,0.12485815]
[1760239388491,0.76121992,111280.0,111270.0,0.04761815]
[1760239388695,0.17974296,111270.0,111260.0,0.04761815]
[1760239388918,0.76088629,111270.0,111260.0,0.04761815]
[1760239389136,0.17975912,111260.0,111250.0,0.04761815]
[1760239389339,0.17977528,111250.0,111240.0,0.00096518]
[1760239389792,0.76091861,111250.0,111240.0,0.00096518]
[1760239390019,0.17977528,111250.0,111240.0,0.00096518]
[1760239390240,0.17975912,111260.0,111240.0,0.25799662]
[1760239390466,0.76987343,111270.0,111250.0,0.21258528]
[1760239390722,0.17974458,111270.0,111260.0,0.03281]
[1760239391335,0.17974458,111270.0,111260.0,0.07724]
[1760239391963,0.77020718,111280.0,111260.0,0.27497137]
[1760239392173,0.17974296,111270.0,111260.0,0.07724]
[1760239392833,0.17974296,111270.0,111250.0,0.27623219]
[1760239393037,0.18091619,111270.0,111250.0,0.27623919]
[1760239393260,0.17974296,111270.0,111250.0,0.33845919]
[1760239393483,0.17974296,111270.0,111260.0,0.03281]
[1760239393673,0.17974296,111270.0,111260.0,0.21256912]
[1760239393915,0.17974296,111270.0,111260.0,0.25699912]
[1760239394659,0.00034978,111280.0,111270.0,0.17974296]
[1760239394890,0.00034978,111280.0,111270.0,0.31920296]
[1760239395139,0.0378,111310.0,111300.0,0.17969451]
[1760239395363,0.26034855,111330.0,111300.0,0.32813923]
[1760239395364,0.17966223,111320.0,111300.0,0.32813923]
[1760239395579,0.17981193,111320.0,111300.0,0.32813923]
[1760239395795,0.17981193,111320.0,111310.0,0.03281]
[1760239396517,0.17981193,111320.0,111300.0,0.22148923]
[1760239396743,0.17981193,111320.0,111310.0,0.21248837]
[1760239396971,0.0001497,111320.0,111310.0,0.25691837]
[1760239397198,0.0001497,111320.0,111310.0,0.07724]
[1760239397426,0.17981193,111320.0,111310.0,0.03281]
[1760239398764,0.17981193,111320.0,111310.0,0.25691837]
[1760239398991,0.17981193,111320.0,111310.0,0.03281]
[1760239399228,0.18391639,111320.0,111300.0,0.22148923]
[1760239399458,0.17981193,111320.0,111300.0,0.22148923]
[1760239399686,0.0001497,111320.0,111310.0,0.25691837]
[1760239399967,0.17981193,111320.0,111310.0,0.25691837]
[1760239400192,0.17981193,111320.0,111310.0,0.21248837]
[1760239400641,0.17981193,111320.0,111310.0,0.03281]
[1760239400864,0.76095526,111320.0,111300.0,0.22148923]
[1760239401100,0.17981193,111320.0,111300.0,0.22148923]
[1760239401332,0.17981193,111320.0,111310.0,0.25691837]
[1760239401571,0.17981193,111320.0,111310.0,0.31913837]
[1760239401802,0.17981193,111320.0,111300.0,0.22148923]
[1760239402032,0.17981193,111320.0,111300.0,0.28370923]
[1760239402268,0.17981193,111320.0,111310.0,0.03281]
[1760239402523,0.76095526,111320.0,111300.0,0.22148923]
[1760239402733,0.17981193,111320.0,111300.0,0.22148923]
[1760239402949,0.0001497,111320.0,111310.0,0.31913837]
[1760239403154,0.17981193,111320.0,111310.0,0.31913837]
[1760239403361,0.0001497,111320.0,111310.0,0.31913837]
[1760239403806,0.17981193,111320.0,111310.0,0.31913837]
[1760239404023,0.76095526,111320.0,111310.0,0.03281]
[1760239404230,0.17981193,111320.0,111310.0,0.31913837]
[1760239404431,0.17981193,111320.0,111310.0,0.32013837]
[1760239404841,0.0001497,111320.0,111310.0,0.32013837]
[1760239405067,0.0001497,111320.0,111310.0,0.25791837]
[1760239405275,0.00425416,111320.0,111310.0,0.25791837]
[1760239405485,0.00425416,111320.0,111310.0,0.31913837]
[1760239406359,0.00425416,111320.0,111310.0,0.25691837]
[1760239406587,0.00425416,111320.0,111310.0,0.31913837]
[1760239406795,0.00425416,111320.0,111310.0,0.32013837]
[1760239407204,0.00425416,111320.0,111310.0,0.31913837]
[1760239407420,0.00425416,111320.0,111310.0,0.9012817]
[1760239407679,0.00425416,111320.0,111310.0,0.9002817]
[1760239407897,0.00425416,111320.0,111310.0,0.9012817]
[1760239408310,0.00425416,111320.0,111310.0,0.32013837]
[1760239408713,0.00425416,111320.0,111310.0,0.31913837]
[1760239409117,0.00425416,111320.0,111310.0,0.32013837]
[1760239409335,0.17890071,111330.0,111310.0,0.32013837]
[1760239409544,0.17890071,111330.0,111320.0,0.21247223]
[1760239409744,0.17966223,111320.0,111310.0,0.03281]
[1760239410007,0.17966223,111320.0,111310.0,0.07824]
[1760239410461,0.17966223,111320.0,111310.0,0.03481]
[1760239410890,0.76004404,111330.0,111310.0,0.25691837]
[1760239411103,0.17966223,111320.0,111310.0,0.25691837]
[1760239411323,0.17966223,111320.0,111310.0,0.03281]
[1760239411581,0.17966223,111320.0,111300.0,0.21250395]
[1760239411792,0.17966223,111320.0,111310.0,0.25691837]
[1760239412203,0.17966223,111320.0,111310.0,0.07724]
[1760239412610,0.17966223,111320.0,111310.0,0.25691837]
[1760239413038,0.17966223,111320.0,111310.0,0.07724]
[1760239413246,0.17967837,111310.0,111300.0,0.21265421]
[1760239413453,0.17967837,111310.0,111300.0,0.25574421]
[1760239414307,0.17966223,111320.0,111310.0,0.17967837]
[1760239414501,0.17966223,111320.0,111310.0,0.25472837]
[1760239414703,0.17966223,111320.0,111310.0,0.07505]
[1760239415106,0.17966223,111320.0,111310.0,0.07601439]
[1760239415526,0.17466223,111320.0,111310.0,0.03292439]
[1760239415803,0.17466223,111320.0,111310.0,0.00096439]
[1760239416254,0.75580556,111320.0,111310.0,0.00096439]
[1760239417143,0.17466223,111320.0,111310.0,0.00096439]
[1760239417592,0.17466223,111320.0,111310.0,0.25569276]
[1760239417593,0.17966223,111320.0,111310.0,0.25569276]
[1760239418261,0.17966223,111320.0,111310.0,0.32207276]
[1760239418941,0.17966223,111320.0,111310.0,0.07601439]
[1760239419621,0.17966223,111320.0,111310.0,0.25569276]
[1760239420037,0.18846913,111330.0,111310.0,0.32207276]
[1760239420242,0.18023992,111330.0,111320.0,0.03196]
[1760239420676,0.17966223,111320.0,111310.0,0.03292439]
[1760239421084,0.17966223,111320.0,111310.0,0.07601439]
[1760239421290,0.17966223,111320.0,111310.0,0.32207276]
[1760239421729,0.18023992,111330.0,111310.0,0.32207276]
[1760239421934,0.76138325,111330.0,111310.0,0.32207276]
[1760239422140,0.76138325,111330.0,111320.0,0.03071]
[1760239422349,0.00058612,111330.0,111320.0,0.31680223]
[1760239424058,0.00058612,111330.0,111320.0,0.31780223]
[1760239424269,0.00058612,111330.0,111320.0,0.3814612]
[1760239425398,0.00058612,111330.0,111320.0,0.3804612]
[1760239425647,0.00058612,111330.0,111320.0,0.3814612]
[1760239426107,0.00058612,111330.0,111320.0,0.3804612]
[1760239426541,0.00058612,111330.0,111320.0,0.3814612]
[1760239429649,0.00058612,111330.0,111320.0,0.3804612]
[1760239430056,0.00058612,111330.0,111320.0,0.3814612]
[1760239430491,0.00058612,111330.0,111320.0,0.3804612]
[1760239431816,0.00058612,111330.0,111320.0,0.3814612]
[1760239433374,0.18023221,111330.0,111320.0,0.06465897]
[1760239433604,0.93543035,111330.0,111320.0,0.001]
[1760239433812,0.55783128,111330.0,111320.0,0.04497]
[1760239434032,0.18023221,111330.0,111320.0,0.25534223]
[1760239434259,0.00058612,111330.0,111320.0,0.31780223]
[1760239434462,0.18023221,111330.0,111320.0,0.13814]
[1760239434761,0.18023221,111330.0,111320.0,0.13714]
[1760239435252,0.17966223,111320.0,111310.0,0.00096439]
[1760239435456,0.5572613,111320.0,111310.0,1e-08]
[1760239435677,0.54466222,111320.0,111310.0,1e-08]
[1760239435892,0.8972613,111320.0,111310.0,1e-08]
[1760239436512,1.29986036,111320.0,111310.0,1e-08]
[1760239436720,1.31668236,111320.0,111310.0,1e-08]
[1760239436932,1.34683426,111320.0,111310.0,1e-08]
[1760239437157,0.20467836,111310.0,111300.0,1e-08]
[1760239437359,0.93487651,111310.0,111300.0,1e-08]
[1760239437562,0.89727744,111310.0,111300.0,1e-08]
[1760239437695,0.92227743,111310.0,111300.0,1e-08]
[1760239437888,1.2998765,111310.0,111300.0,1e-08]
[1760239440216,0.89727744,111310.0,111300.0,1e-08]
[1760239440407,0.92227743,111310.0,111300.0,1e-08]
[1760239440760,1.2998765,111310.0,111300.0,1e-08]
[1760239440948,0.17967837,111310.0,111300.0,1e-08]
[1760239441145,0.55727744,111310.0,111300.0,1e-08]
[1760239441371,0.17967837,111310.0,111300.0,0.21040452]
[1760239441559,0.5572613,111320.0,111300.0,0.25437452]
[1760239441750,0.17967837,111310.0,111300.0,0.25437452]
[1760239441998,0.17967837,111310.0,111300.0,0.07468001]
[1760239442430,0.55727744,111310.0,111300.0,1e-08]
[1760239442845,0.55727744,111310.0,111300.0,0.00058633]
[1760239443661,0.55727744,111310.0,111300.0,0.03197633]
[1760239443999,0.18062658,111320.0,111300.0,0.21167084]
[1760239444207,0.17967837,111310.0,111300.0,0.00058633]
[1760239444526,0.55727744,111310.0,111300.0,0.00058633]
[1760239445119,0.55727744,111310.0,111300.0,0.25246084]
[1760239445361,0.55822565,111320.0,111300.0,0.25246084]
[1760239445709,0.55822565,111320.0,111300.0,0.31785084]
[1760239446642,0.17967837,111310.0,111300.0,0.25246084]
[1760239447358,0.55822565,111320.0,111310.0,0.17967837]
[1760239447562,0.55822565,111320.0,111310.0,0.25185837]
[1760239447767,0.00096435,111320.0,111310.0,0.31724837]
[1760239447972,0.18062658,111320.0,111310.0,0.25185837]
[1760239448172,0.55822565,111320.0,111300.0,0.21167084]
[1760239448603,0.55727744,111310.0,111300.0,0.00058633]
[1760239449525,1.27487651,111310.0,111300.0,0.00058633]
[1760239451853,0.51967837,111310.0,111300.0,0.00058633]
[1760239452277,1.27487651,111310.0,111300.0,0.00058633]
[1760239454279,0.51967837,111310.0,111300.0,0.00058633]
[1760239454496,1.27487651,111310.0,111300.0,0.00058633]
[1760239457461,0.89727744,111310.0,111300.0,0.00058633]
[1760239458101,1.27487651,111310.0,111300.0,0.00058633]
[1760239458953,0.17974296,111270.0,111250.0,0.10301362]
[1760239459134,0.55735819,111260.0,111250.0,0.0717734]
[1760239459371,0.55735819,111260.0,111250.0,0.00014978]
[1760239460042,0.17975912,111260.0,111250.0,0.17992506]
[1760239460468,0.55735819,111260.0,111250.0,0.00214978]
[1760239460684,0.55735819,111260.0,111250.0,0.00314978]
[1760239460892,0.55735819,111260.0,111250.0,0.00214978]
[1760239461163,0.55735819,111260.0,111250.0,0.00014978]
[1760239461788,0.89735819,111260.0,111250.0,0.00014978]
[1760239463071,0.90711503,111260.0,111250.0,0.00014978]
[1760239463297,0.17982377,111220.0,111210.0,0.07162362]
[1760239463534,0.55742284,111220.0,111210.0,0.0721229]
[1760239463762,0.55742284,111220.0,111210.0,0.00049928]
[1760239464612,0.55742284,111220.0,111210.0,0.00149928]
[1760239465087,0.1798076,111230.0,111210.0,0.00678063]
[1760239465302,0.56640895,111250.0,111220.0,0.17982377]
[1760239465514,0.17979144,111240.0,111220.0,0.27660377]
[1760239465725,0.17979144,111240.0,111230.0,0.1798076]
[1760239465935,0.55739051,111240.0,111220.0,0.21121377]
[1760239466400,0.1798076,111230.0,111210.0,0.21172922]
[1760239466612,0.55740667,111230.0,111210.0,0.21172922]
[1760239466819,0.1798076,111230.0,111220.0,0.17982377]
[1760239467027,0.17979144,111240.0,111220.0,0.25200377]
[1760239467459,0.17979159,111240.0,111220.0,0.25200377]
[1760239467723,0.1798076,111230.0,111210.0,0.22072121]
[1760239467935,0.55739066,111240.0,111210.0,0.22072121]
[1760239467936,0.17979159,111240.0,111220.0,0.25200377]
[1760239468151,0.17979159,111240.0,111220.0,0.31739377]
[1760239468361,0.17977886,111250.0,111230.0,0.2111976]
[1760239469662,0.18874707,111260.0,111240.0,0.31736144]
[1760239470088,0.001,111250.0,111240.0,0.25197144]
[1760239470310,0.001,111250.0,111240.0,0.31736144]
[1760239470521,0.001,111250.0,111240.0,0.69496051]
[1760239470730,0.001,111250.0,111240.0,0.31736144]
[1760239470943,0.17976069,111260.0,111250.0,0.17977528]
[1760239471352,0.17976069,111260.0,111250.0,0.17877528]
[1760239472227,0.17991016,111260.0,111250.0,0.17877528]
[1760239473331,0.00014947,111260.0,111250.0,0.30898528]
[1760239473547,0.00014947,111260.0,111250.0,0.68658435]
[1760239474226,0.00014947,111260.0,111250.0,0.17877528]
[1760239474444,0.17990859,111260.0,111240.0,0.03139]
[1760239474657,0.17990859,111260.0,111240.0,0.21118144]
[1760239474873,0.17990859,111260.0,111250.0,0.18077528]
[1760239475081,0.17990859,111260.0,111250.0,0.001]
[1760239475509,0.17990859,111260.0,111250.0,0.17977528]
[1760239475720,0.00014947,111260.0,111250.0,0.17977528]
[1760239476568,0.00014947,111260.0,111250.0,0.68758435]
[1760239477028,0.00014947,111260.0,111250.0,0.69051738]
[1760239477452,0.00014947,111260.0,111250.0,0.31291831]
[1760239477866,0.00014947,111260.0,111250.0,0.31391831]
[1760239478305,0.00014947,111260.0,111250.0,0.21587831]
[1760239478519,0.00014947,111260.0,111250.0,0.21687831]
[1760239478725,0.00014947,111260.0,111250.0,0.18470831]
[1760239479358,0.00014947,111260.0,111250.0,0.63363738]
[1760239479534,0.00014947,111260.0,111250.0,0.69251738]
[1760239479732,0.00014947,111260.0,111250.0,0.63263738]
[1760239479971,0.00014947,111260.0,111250.0,0.25403831]
[1760239480684,0.00014947,111260.0,111250.0,0.25503831]
[1760239481095,0.00014947,111260.0,111250.0,0.31491831]
[1760239481791,0.00014947,111260.0,111250.0,0.25603831]
[1760239482205,0.00014947,111260.0,111250.0,0.07626303]
[1760239482416,0.17990859,111260.0,111250.0,0.00493303]
[1760239482595,0.55750766,111260.0,111250.0,0.00493303]
[1760239482803,0.17990859,111260.0,111250.0,0.00493303]
[1760239483244,0.17990859,111260.0,111250.0,0.00393303]
[1760239483419,0.17990859,111260.0,111250.0,0.00293303]
[1760239484702,0.55750766,111260.0,111250.0,0.00293303]
[1760239485127,0.89750766,111260.0,111250.0,0.00293303]
[1760239485974,0.51990859,111260.0,111250.0,0.00293303]
[1760239486188,0.89750766,111260.0,111250.0,0.00293303]
[1760239489780,0.51990859,111260.0,111250.0,0.00293303]
[1760239489992,0.89750766,111260.0,111250.0,0.00293303]
[1760239490201,0.51990859,111260.0,111250.0,0.00293303]
[1760239490624,0.89750766,111260.0,111250.0,0.00293303]
[1760239492651,0.51990859,111260.0,111250.0,0.00293303]
[1760239493485,0.17990859,111260.0,111250.0,0.00293303]
[1760239494116,0.00014947,111260.0,111250.0,0.22219831]
[1760239494321,0.00014947,111260.0,111250.0,0.25402831]
[1760239494942,0.17990859,111260.0,111250.0,0.00293303]
[1760239495655,0.7609323,111260.0,111250.0,0.00293303]
[1760239496067,1.1009323,111260.0,111250.0,0.00293303]
[1760239497459,0.51990859,111260.0,111250.0,0.00293303]
[1760239497730,1.1009323,111260.0,111250.0,0.00293303]
[1760239500001,0.51990859,111260.0,111250.0,0.00293303]
[1760239500240,0.17990859,111260.0,111250.0,0.00293303]
[1760239500679,0.00014947,111260.0,111250.0,0.25402831]
[1760239500885,0.00014947,111260.0,111250.0,0.89399202]
[1760239501098,0.00014947,111260.0,111250.0,0.31296831]
[1760239501308,0.00014947,111260.0,111250.0,0.89399202]
[1760239501728,0.00014947,111260.0,111250.0,0.95765099]
[1760239501935,0.00014947,111260.0,111250.0,0.97362136]
[1760239502806,0.00014947,111260.0,111250.0,0.97462136]
[1760239503015,0.00014947,111260.0,111250.0,0.89599202]
[1760239504972,0.00014947,111260.0,111250.0,0.95948942]
[1760239505180,0.00014947,111260.0,111250.0,0.89599202]
[1760239506007,0.00014947,111260.0,111250.0,0.89499202]
[1760239506227,0.00014947,111260.0,111250.0,0.89399202]
[1760239506435,2.951e-05,111260.0,111250.0,2.06137326]
[1760239506853,2.951e-05,111260.0,111250.0,2.05937326]
[1760239507115,0.0378,111270.0,111260.0,0.51975912]
[1760239507349,0.07162362,111300.0,111290.0,0.17971066]
[1760239507569,0.07177329,111300.0,111290.0,0.89673437]
[1760239508003,0.00014967,111300.0,111290.0,0.89673437]
[1760239508845,0.00014967,111300.0,111280.0,0.06339603]
[1760239509119,0.17972681,111280.0,111270.0,0.09516603]
[1760239509411,0.17971066,111290.0,111280.0,0.03177]
[1760239509671,0.17972681,111280.0,111270.0,0.21151296]
[1760239509971,0.17971066,111290.0,111270.0,0.31574296]
[1760239510190,0.17972681,111280.0,111270.0,0.31574296]
[1760239510431,0.17971066,111290.0,111270.0,0.31574296]
[1760239510670,0.17972681,111280.0,111270.0,0.136]
[1760239510996,0.17972681,111280.0,111270.0,0.03177]
[1760239511194,0.17972681,111280.0,111270.0,0.0722]
[1760239511455,0.17972681,111280.0,111270.0,0.0732]
[1760239512719,0.17972681,111280.0,111270.0,0.25294216]
[1760239512965,0.17972681,111280.0,111270.0,0.25394216]
[1760239513200,0.17971066,111290.0,111270.0,0.31950166]
[1760239513458,0.17971248,111290.0,111280.0,0.17972681]
[1760239513704,0.1888586,111300.0,111280.0,0.9147232]
[1760239513921,0.17971066,111290.0,111280.0,0.25192681]
[1760239514137,0.17971066,111290.0,111280.0,0.31572681]
[1760239514352,0.17971066,111290.0,111280.0,0.25192681]
[1760239514571,0.17971066,111290.0,111280.0,0.0722]
[1760239515275,0.17972681,111280.0,111270.0,0.03177]
[1760239515512,0.17972681,111280.0,111270.0,0.0722]
[1760239516398,0.17972681,111280.0,111260.0,0.865339]
[1760239516399,0.17974296,111270.0,111260.0,0.03177]
[1760239516620,0.17975912,111260.0,111250.0,0.03177]
[1760239516835,0.17975912,111260.0,111250.0,0.31577528]
[1760239517738,0.17977528,111250.0,111240.0,0.03177]
[1760239517951,0.17977528,111250.0,111240.0,0.25214111]
[1760239518166,0.17975912,111260.0,111240.0,0.31594111]
[1760239518346,0.17975912,111260.0,111240.0,0.31194111]
[1760239518835,0.17977528,111250.0,111240.0,0.31194111]
[1760239519050,0.17977528,111250.0,111240.0,0.31294111]
[1760239519259,0.17977528,111250.0,111240.0,0.13666962]
[1760239519481,0.17977528,111250.0,111240.0,0.07286962]
[1760239519689,0.17977528,111250.0,111240.0,0.00466962]
[1760239520346,0.17975912,111260.0,111240.0,0.32046106]
[1760239520556,0.17975255,111270.0,111250.0,0.87434651]
[1760239520767,0.17975912,111260.0,111250.0,0.27534528]
[1760239520980,0.17975912,111260.0,111250.0,0.0722]
[1760239521188,0.17975912,111260.0,111250.0,0.25197528]
[1760239522495,0.17975912,111260.0,111250.0,0.002]
[1760239523571,1.10078283,111260.0,111250.0,0.002]
[1760239524018,1.10078283,111260.0,111250.0,0.001]
[1760239524455,0.51977528,111250.0,111240.0,0.00014967]
[1760239524915,1.10079899,111250.0,111240.0,0.00014967]
[1760239525611,0.51977528,111250.0,111240.0,0.00014967]
[1760239526247,1.10079899,111250.0,111240.0,0.00014967]
[1760239526726,1.17899472,111250.0,111240.0,1e-08]
[1760239526939,1.27899471,111250.0,111240.0,1e-08]
[1760239527587,0.697971,111250.0,111240.0,1e-08]
[1760239527763,1.17899472,111250.0,111240.0,1e-08]
[1760239527969,1.27899471,111250.0,111240.0,1e-08]
[1760239528795,1.86001842,111250.0,111240.0,1e-08]
[1760239529714,0.697971,111250.0,111240.0,1e-08]
[1760239529931,1.27899471,111250.0,111240.0,1e-08]
[1760239530441,1.25595087,111250.0,111240.0,1e-08]
[1760239530668,1.25695087,111250.0,111240.0,1e-08]
[1760239530889,0.67592716,111250.0,111240.0,1e-08]
[1760239531110,1.25595087,111250.0,111240.0,1e-08]
[1760239531329,1.25695087,111250.0,111240.0,1e-08]
[1760239531763,0.91595087,111250.0,111240.0,1e-08]
[1760239532193,0.81695088,111250.0,111240.0,1e-08]
[1760239532408,0.91695087,111250.0,111240.0,1e-08]
[1760239532622,0.93999471,111250.0,111240.0,1e-08]
[1760239533068,0.358971,111250.0,111240.0,1e-08]
[1760239533279,0.81695088,111250.0,111240.0,1e-08]
[1760239533483,0.91595087,111250.0,111240.0,1e-08]
[1760239533716,1.25595087,111250.0,111240.0,1e-08]
[1760239533930,1.25795087,111250.0,111240.0,1e-08]
[1760239534625,1.28099471,111250.0,111240.0,1e-08]
[1760239535940,1.25795087,111250.0,111240.0,1e-08]
[1760239545547,1.15795088,111250.0,111240.0,1e-08]
[1760239545762,1.25795087,111250.0,111240.0,1e-08]
[1760239546708,1.15795088,111250.0,111240.0,1e-08]
[1760239547570,1.25795087,111250.0,111240.0,1e-08]
[1760239547701,1.83897458,111250.0,111240.0,1e-08]
[1760239547910,1.86001842,111250.0,111240.0,1e-08]
[1760239548115,1.86201842,111250.0,111240.0,1e-08]
[1760239548338,1.87879906,111250.0,111240.0,1e-08]
[1760239548955,5.93502506,111250.0,111240.0,1e-08]
[1760239549208,5.95436463,111250.0,111240.0,1e-08]
[1760239549423,5.95336463,111250.0,111240.0,1e-08]
[1760239549635,5.93132079,111250.0,111240.0,1e-08]
[1760239549845,1.87409479,111250.0,111240.0,1e-08]
[1760239550461,1.87509479,111250.0,111240.0,1e-08]
[1760239550662,1.87709479,111250.0,111240.0,1e-08]
[1760239550864,1.87509479,111250.0,111240.0,1e-08]
[1760239551099,1.87309479,111250.0,111240.0,1e-08]
[1760239551292,1.87709479,111250.0,111240.0,1e-08]
[1760239551499,5.93332079,111250.0,111240.0,1e-08]
[1760239551699,5.98049639,111250.0,111240.0,1e-08]
[1760239552071,5.98052352,111250.0,111240.0,1e-08]
[1760239552983,6.11310052,111250.0,111240.0,1e-08]
[1760239553408,6.08896876,111250.0,111240.0,1e-08]
[1760239553614,6.46766914,111250.0,111240.0,1e-08]
[1760239554351,6.5166403,111250.0,111240.0,1e-08]
[1760239554737,6.41664031,111250.0,111240.0,1e-08]
[1760239554942,6.5166403,111250.0,111240.0,1e-08]
[1760239555145,0.51985611,111200.0,111190.0,0.0004]
[1760239555347,0.55765611,111200.0,111190.0,0.00089928]
[1760239556055,0.58780801,111200.0,111190.0,0.00089928]
[1760239556256,0.96650839,111200.0,111190.0,1e-08]
[1760239556775,1.00835107,111200.0,111190.0,1e-08]
[1760239557242,1.03139491,111200.0,111190.0,1e-08]
[1760239557648,1.04073101,111200.0,111190.0,1e-08]
[1760239557857,1.41943139,111200.0,111190.0,1e-08]
[1760239558280,1.04073101,111200.0,111190.0,1e-08]
[1760239558635,1.41943139,111200.0,111190.0,1e-08]
[1760239559421,1.41947139,111200.0,111190.0,1e-08]
[1760239560231,1.13710664,111200.0,111190.0,1e-08]
[1760239560453,1.11772716,111200.0,111190.0,1e-08]
[1760239560658,1.11772716,111200.0,111190.0,0.00293541]
[1760239560872,0.99272718,111200.0,111190.0,1e-08]
[1760239561232,0.59718411,111200.0,111190.0,1e-08]
[1760239561439,0.97588449,111200.0,111190.0,1e-08]
[1760239561787,0.22703221,111200.0,111190.0,1e-08]
[1760239562139,0.56703221,111200.0,111190.0,1e-08]
[1760239562342,0.94573259,111200.0,111190.0,1e-08]
[1760239563833,0.97588449,111200.0,111190.0,1e-08]
[1760239564729,1.35458487,111200.0,111190.0,1e-08]
[1760239564933,1.51944285,111200.0,111190.0,1e-08]
[1760239565142,1.11769863,111200.0,111190.0,1e-08]
[1760239565784,1.11049863,111200.0,111190.0,1e-08]
[1760239565988,1.01049864,111200.0,111190.0,1e-08]
[1760239566409,0.21983221,111200.0,111190.0,1e-08]
[1760239566613,0.59853259,111200.0,111190.0,1e-08]
[1760239567034,0.93853259,111200.0,111190.0,1e-08]
[1760239567906,0.93075485,111200.0,111190.0,1e-08]
[1760239569046,0.55205447,111200.0,111190.0,1e-08]
[1760239569257,0.93075485,111200.0,111190.0,1e-08]
[1760239574286,0.55205447,111200.0,111190.0,1e-08]
[1760239574546,0.20271837,111200.0,111190.0,0.03927001]
[1760239574762,0.02286226,111200.0,111190.0,0.3083423]
[1760239574971,0.02286226,111200.0,111190.0,0.68704268]
[1760239575196,0.02286226,111200.0,111190.0,0.3083423]
[1760239575410,0.20271837,111200.0,111190.0,0.3083423]
[1760239575631,0.20271837,111200.0,111190.0,0.3093423]
[1760239575847,0.20271837,111200.0,111190.0,0.3103423]
[1760239576694,0.20271837,111200.0,111190.0,0.13047001]
[1760239577358,0.20271837,111200.0,111190.0,0.00200001]
[1760239577576,0.20271837,111200.0,111190.0,0.13047001]
[1760239577790,0.20271837,111200.0,111190.0,0.3103423]
[1760239578236,0.20271837,111200.0,111190.0,0.13047001]
[1760239579062,0.20271837,111200.0,111190.0,0.06979001]
[1760239579506,0.20271837,111200.0,111190.0,0.3103423]
[1760239579897,0.02286226,111200.0,111190.0,0.3103423]
[1760239580102,0.02286226,111200.0,111190.0,0.68904268]
[1760239580960,0.02286226,111200.0,111190.0,0.75243871]